bitfinex/quotes_BTCUSD_20230114
["timestamp","ask_amount","ask_price","bid_price","bid_amount"]
[1673686147192,0.23526344,21018.0,21017.0,0.28864491]
[1673686147478,0.41406356,21018.0,21017.0,0.28864491]
[1673686147731,0.41406356,21018.0,21017.0,0.005]
[1673686147979,0.23526344,21018.0,21017.0,0.005]
[1673686148225,0.51187587,21018.0,21017.0,0.005]
[1673686148472,0.83274087,21018.0,21017.0,0.005]
[1673686148719,0.93465531,21018.0,21017.0,0.005]
[1673686149217,0.83274087,21018.0,21017.0,0.005]
[1673686149466,0.23526344,21018.0,21017.0,0.31708484]
[1673686149954,0.23526344,21018.0,21017.0,0.19975484]
[1673686151193,0.23526344,21018.0,21017.0,0.45254019]
[1673686151691,0.23526344,21018.0,21017.0,0.54537861]
[1673686151923,0.23526344,21018.0,21017.0,0.75928361]
[1673686152162,0.23526344,21018.0,21017.0,0.45254019]
[1673686154423,0.23526344,21018.0,21017.0,0.66644519]
[1673686155420,0.23526344,21018.0,21017.0,0.45254019]
[1673686156646,0.23526344,21018.0,21017.0,0.66644519]
[1673686157661,0.23526344,21018.0,21017.0,0.96644519]
[1673686157903,0.23526344,21018.0,21017.0,0.66644519]
[1673686158145,0.23526344,21018.0,21017.0,1.65538181]
[1673686158922,0.23526344,21018.0,21017.0,1.14225019]
[1673686161661,0.23526344,21018.0,21017.0,0.66644519]
[1673686165136,0.23526344,21018.0,21017.0,0.47169035]
[1673686165380,0.45725434,21018.0,21017.0,0.005]
[1673686169448,1.24315881,21018.0,21017.0,0.005]
[1673686169670,1.35635881,21018.0,21017.0,0.00493591]
[1673686169908,1.35831044,21018.0,21017.0,0.00493591]
[1673686171644,1.36681044,21018.0,21017.0,0.00493591]
[1673686173381,1.26681044,21018.0,21017.0,0.00493591]
[1673686173875,1.48093753,21018.0,21017.0,0.00493591]
[1673686174126,1.25453753,21018.0,21017.0,0.00493591]
[1673686174370,1.03553753,21018.0,21015.0,0.20592537]
[1673686174605,0.84967253,21018.0,21015.0,0.28949693]
[1673686174852,0.84967253,21018.0,21015.0,0.55591382]
[1673686174853,0.23889053,21018.0,21015.0,0.55591382]
[1673686175096,0.37489053,21018.0,21015.0,0.55591382]
[1673686175347,0.23889053,21018.0,21015.0,0.55591382]
[1673686175615,0.07726344,21018.0,21015.0,0.26741689]
[1673686175948,0.320865,21017.0,21015.0,0.26641689]
[1673686176200,0.55304744,21018.0,21015.0,0.26741689]
[1673686176451,0.47938524,21017.0,21015.0,0.26741689]
[1673686176687,0.63432924,21017.0,21015.0,0.26741689]
[1673686176945,0.320865,21016.0,21015.0,0.26741689]
[1673686177442,0.796692,21016.0,21015.0,0.26741689]
[1673686177919,0.796692,21016.0,21015.0,0.26641689]
[1673686178177,0.857692,21016.0,21015.0,0.26741689]
[1673686179166,0.71384254,21016.0,21015.0,0.26741689]
[1673686179906,0.061,21016.0,21015.0,1.02270885]
[1673686180189,0.061,21016.0,21015.0,2.27918097]
[1673686180417,0.061,21016.0,21015.0,2.6307674]
[1673686180657,0.061,21016.0,21015.0,2.3307674]
[1673686180899,0.061,21016.0,21015.0,2.82534825]
[1673686181141,0.061,21016.0,21015.0,2.82541708]
[1673686181382,0.061,21016.0,21015.0,2.62069348]
[1673686181622,0.061,21016.0,21015.0,2.88382791]
[1673686181860,0.059,21016.0,21015.0,2.62069348]
[1673686182386,0.059,21016.0,21015.0,2.73389348]
[1673686182643,0.059,21016.0,21015.0,2.38230705]
[1673686185140,0.059,21016.0,21015.0,2.63411479]
[1673686185391,0.059,21016.0,21015.0,2.5933654]
[1673686185893,0.059,21016.0,21015.0,2.38230705]
[1673686187924,0.059,21016.0,21015.0,3.03108697]
[1673686188430,0.059,21016.0,21015.0,2.91788697]
[1673686188927,0.059,21016.0,21015.0,3.13162908]
[1673686189185,0.059,21016.0,21015.0,2.40894916]
[1673686189438,0.01626344,21018.0,21015.0,3.44012484]
[1673686189706,0.01626344,21018.0,21015.0,3.56492304]
[1673686189707,0.005,21016.0,21015.0,3.56492304]
[1673686189961,0.005,21016.0,21015.0,2.61338108]
[1673686190237,0.01626344,21018.0,21016.0,0.21213348]
[1673686190466,0.01626344,21018.0,21017.0,2.42917203]
[1673686190784,0.03026344,21018.0,21017.0,3.43640387]
[1673686190994,0.01626344,21018.0,21017.0,3.43640387]
[1673686191494,0.01626344,21018.0,21017.0,3.78844707]
[1673686191744,0.01626344,21018.0,21017.0,3.43640387]
[1673686192249,0.02826344,21018.0,21017.0,3.66650304]
[1673686192505,0.02826344,21018.0,21017.0,4.01853828]
[1673686192744,0.02826344,21018.0,21017.0,3.90533828]
[1673686193517,0.02826344,21018.0,21017.0,3.64812888]
[1673686194015,0.02826344,21018.0,21017.0,3.69023911]
[1673686194243,0.02826344,21018.0,21017.0,3.64812888]
[1673686194726,0.02826344,21018.0,21017.0,3.69023911]
[1673686195209,0.02826344,21018.0,21017.0,4.19439336]
[1673686195448,0.18663269,21018.0,21017.0,3.97181106]
[1673686195693,0.02826344,21018.0,21017.0,3.97181106]
[1673686195938,0.02826344,21018.0,21017.0,3.83856134]
[1673686196196,0.02826344,21018.0,21017.0,2.16435176]
[1673686196441,0.02826344,21018.0,21017.0,3.32607649]
[1673686196958,0.02826344,21018.0,21017.0,3.48716365]
[1673686197462,0.02826344,21018.0,21017.0,3.43535054]
[1673686197745,0.02826344,21018.0,21017.0,3.91315174]
[1673686197746,0.01626344,21018.0,21017.0,3.91315174]
[1673686198711,0.02426344,21018.0,21017.0,4.01115174]
[1673686198977,0.02426344,21018.0,21017.0,4.26480332]
[1673686199220,0.02426344,21018.0,21017.0,3.89835174]
[1673686199221,0.03226344,21018.0,21017.0,3.89835174]
[1673686199452,0.03226344,21018.0,21017.0,4.24985313]
[1673686199720,0.01626344,21018.0,21017.0,3.80035174]
[1673686199959,0.01626344,21018.0,21017.0,3.89835174]
[1673686199960,0.02426344,21018.0,21017.0,3.89835174]
[1673686200695,0.02426344,21018.0,21017.0,4.01095174]
[1673686201226,0.02426344,21018.0,21017.0,4.36241441]
[1673686201527,0.02346444,21018.0,21017.0,4.36241441]
[1673686201748,0.02346444,21018.0,21017.0,2.62921317]
[1673686202534,0.02346444,21018.0,21017.0,2.4182597]
[1673686202776,0.01546444,21018.0,21017.0,2.3202597]
[1673686203027,0.02446444,21018.0,21017.0,2.4102597]
[1673686203275,0.02446444,21018.0,21017.0,2.44739391]
[1673686204048,0.02446444,21018.0,21017.0,2.65834738]
[1673686204293,0.02446444,21018.0,21017.0,2.51770453]
[1673686204566,0.02446444,21018.0,21017.0,3.27611318]
[1673686204820,0.01546444,21018.0,21017.0,3.18611318]
[1673686205076,0.02446444,21018.0,21017.0,2.99490622]
[1673686205349,0.01546444,21018.0,21017.0,3.04553221]
[1673686205574,0.02446444,21018.0,21017.0,3.33421195]
[1673686205895,0.02446444,21018.0,21017.0,3.13553221]
[1673686206311,0.02446444,21018.0,21017.0,3.37964146]
[1673686206544,0.02446444,21018.0,21017.0,3.13553221]
[1673686206798,0.02446444,21018.0,21017.0,3.13550038]
[1673686207033,0.02446444,21018.0,21017.0,2.99490622]
[1673686207276,0.02446444,21018.0,21017.0,3.13548551]
[1673686207517,0.02446444,21018.0,21017.0,2.99490622]
[1673686208245,0.02446444,21018.0,21017.0,3.27611318]
[1673686208506,0.02446444,21018.0,21017.0,3.41662238]
[1673686208759,0.02446444,21018.0,21017.0,3.52967403]
[1673686209488,0.02446444,21018.0,21017.0,3.17821136]
[1673686209720,0.02446444,21018.0,21017.0,3.38901903]
[1673686209957,0.02446444,21018.0,21017.0,3.10796042]
[1673686210193,0.02446444,21018.0,21017.0,3.1353101]
[1673686210452,0.02446444,21018.0,21017.0,2.99476042]
[1673686210684,0.02446444,21018.0,21017.0,3.27581903]
[1673686211719,0.02446444,21018.0,21017.0,3.63620676]
[1673686212190,0.02446444,21018.0,21017.0,3.10796042]
[1673686212428,0.02446444,21018.0,21017.0,3.17606337]
[1673686213166,0.02446444,21018.0,21017.0,2.9245602]
[1673686213403,0.02446444,21018.0,21017.0,4.08714704]
[1673686213677,0.02446444,21018.0,21017.0,4.30927636]
[1673686213923,0.02446444,21018.0,21017.0,3.61601389]
[1673686214426,0.02446444,21018.0,21017.0,4.58354832]
[1673686214659,0.02446444,21018.0,21017.0,3.49133314]
[1673686214901,0.13766444,21018.0,21017.0,0.303907]
[1673686215162,0.13766444,21018.0,21015.0,0.35167228]
[1673686215163,0.7734695,21018.0,21015.0,0.35167228]
[1673686215412,0.7734695,21018.0,21014.0,0.25318172]
[1673686215413,0.320865,21017.0,21014.0,0.25318172]
[1673686215674,0.320865,21017.0,21013.0,0.00019]
[1673686215675,0.1,21016.0,21013.0,0.00019]
[1673686215918,0.2258,21014.0,21013.0,0.00019]
[1673686216178,0.2008,21014.0,21010.0,0.00563318]
[1673686216418,0.1132,21012.0,21010.0,0.27022312]
[1673686216915,0.1132,21012.0,21010.0,0.06844599]
[1673686217428,0.1132,21012.0,21010.0,0.00563318]
[1673686217661,0.1952,21012.0,21010.0,0.00563318]
[1673686217917,0.1132,21012.0,21010.0,0.00563318]
[1673686218669,0.19211088,21011.0,21010.0,0.00563318]
[1673686218902,0.1682585,21011.0,21010.0,0.00563318]
[1673686219145,0.1682585,21011.0,21010.0,0.06134868]
[1673686219385,0.082,21012.0,21010.0,0.57380059]
[1673686219629,0.29127346,21013.0,21010.0,0.57380059]
[1673686220107,0.29127346,21013.0,21010.0,0.27380059]
[1673686220108,0.082,21011.0,21010.0,0.27380059]
[1673686220352,0.29127346,21013.0,21010.0,0.27380059]
[1673686220872,0.37327346,21013.0,21010.0,0.27380059]
[1673686221405,0.37327346,21013.0,21010.0,0.74976259]
[1673686221898,0.29127346,21013.0,21010.0,0.74976259]
[1673686222373,0.29127346,21013.0,21011.0,0.24448557]
[1673686222614,0.37327346,21013.0,21011.0,0.40559033]
[1673686223347,0.29127346,21013.0,21011.0,0.24448557]
[1673686223588,0.42527346,21013.0,21011.0,0.24448557]
[1673686224076,0.42527346,21013.0,21010.0,0.00563318]
[1673686224332,0.14025823,21012.0,21010.0,0.00563318]
[1673686225631,0.22225823,21012.0,21010.0,0.00563318]
[1673686226616,0.19596628,21011.0,21010.0,0.00563318]
[1673686227122,0.30856628,21011.0,21010.0,0.00563318]
[1673686227372,0.62943128,21011.0,21010.0,0.00563318]
[1673686228155,0.39056628,21011.0,21010.0,0.00563318]
[1673686228389,0.71143128,21011.0,21010.0,0.00563318]
[1673686228678,0.44256628,21011.0,21010.0,0.00563318]
[1673686228895,0.76343128,21011.0,21010.0,0.00563318]
[1673686229150,0.98099373,21011.0,21010.0,0.00563318]
[1673686229387,0.98099373,21011.0,21010.0,3.318e-05]
[1673686229388,1.265106,21011.0,21010.0,3.318e-05]
[1673686229634,1.165106,21011.0,21008.0,0.00467299]
[1673686229882,0.2264,21009.0,21008.0,0.00467299]
[1673686230131,0.547265,21009.0,21008.0,0.00467299]
[1673686230877,1.023251,21009.0,21008.0,0.00467299]
[1673686231364,1.159251,21009.0,21008.0,0.00467299]
[1673686231624,1.031751,21009.0,21008.0,0.00467299]
[1673686231858,1.34614217,21009.0,21008.0,0.00467299]
[1673686232099,1.267751,21009.0,21008.0,0.00467299]
[1673686232362,1.131751,21009.0,21008.0,0.00467299]
[1673686232614,1.267751,21009.0,21008.0,0.00467299]
[1673686232862,1.131751,21009.0,21008.0,0.00467299]
[1673686233103,1.031751,21009.0,21008.0,0.00467299]
[1673686233335,1.22477648,21009.0,21008.0,0.00467299]
[1673686233588,1.21627648,21009.0,21008.0,0.00467299]
[1673686233868,1.35227648,21009.0,21008.0,0.00467299]
[1673686234603,1.21627648,21009.0,21008.0,0.00467299]
[1673686234866,0.25349353,21008.0,21006.0,0.00334723]
[1673686235116,0.434065,21007.0,21006.0,0.00334723]
[1673686235358,0.1132,21007.0,21006.0,0.00334723]
[1673686236863,0.21436933,21007.0,21006.0,0.00334723]
[1673686237122,0.67023433,21007.0,21006.0,0.00334723]
[1673686237363,0.83331164,21007.0,21006.0,0.00334723]
[1673686237596,1.145096,21007.0,21006.0,0.00334723]
[1673686237852,1.045096,21007.0,21006.0,0.00334723]
[1673686238096,1.158296,21007.0,21006.0,0.00334723]
[1673686238339,1.123296,21007.0,21006.0,0.00334723]
[1673686238616,1.56560618,21007.0,21006.0,0.00334723]
[1673686238847,0.71765608,21007.0,21006.0,0.00334723]
[1673686239098,0.135,21007.0,21006.0,0.11259723]
[1673686239342,0.135,21007.0,21006.0,0.00334723]
[1673686239586,0.19788239,21008.0,21006.0,0.00334723]
[1673686239832,0.136,21007.0,21006.0,0.10383771]
[1673686240075,0.005,21007.0,21006.0,0.10383771]
[1673686240306,0.141,21007.0,21006.0,0.10383771]
[1673686240564,0.141,21007.0,21006.0,0.00334723]
[1673686240812,0.005,21007.0,21006.0,0.00334723]
[1673686241054,0.005,21007.0,21006.0,0.00454592]
[1673686241317,0.005,21007.0,21006.0,0.00334723]
[1673686241547,0.141,21007.0,21006.0,0.00334723]
[1673686242290,0.141,21007.0,21006.0,0.15156538]
[1673686242541,0.141,21007.0,21006.0,0.00334723]
[1673686242790,0.141,21007.0,21006.0,0.10988723]
[1673686243019,0.141,21007.0,21006.0,0.52042239]
[1673686243286,0.141,21007.0,21006.0,0.82042239]
[1673686243534,0.141,21007.0,21006.0,1.00856285]
[1673686244096,0.005,21007.0,21006.0,1.28587305]
[1673686244330,0.021,21007.0,21006.0,1.28887305]
[1673686244592,0.005,21007.0,21006.0,1.28587305]
[1673686245118,0.03330837,21007.0,21006.0,1.28587305]
[1673686245586,0.04930837,21007.0,21006.0,1.18233305]
[1673686245838,0.03330837,21007.0,21006.0,1.17933305]
[1673686246335,0.04930837,21007.0,21006.0,1.18233305]
[1673686248310,0.04930837,21007.0,21006.0,1.65832045]
[1673686248560,0.04930837,21007.0,21006.0,1.7990097]
[1673686248807,0.04930837,21007.0,21006.0,1.35832045]
[1673686249307,0.3086368,21007.0,21006.0,0.00628063]
[1673686249539,0.4209368,21007.0,21006.0,0.00628063]
[1673686250284,0.16160837,21007.0,21006.0,0.00628063]
[1673686250777,0.16160837,21007.0,21006.0,0.00747932]
[1673686251023,0.16160837,21007.0,21006.0,0.00628063]
[1673686252058,0.34447785,21007.0,21006.0,0.00628063]
[1673686252310,0.30134886,21007.0,21006.0,0.00628063]
[1673686254503,0.30134886,21007.0,21006.0,0.14696988]
[1673686255243,0.30134886,21007.0,21006.0,0.00628063]
[1673686255476,0.62221386,21007.0,21006.0,0.14696988]
[1673686255740,0.62221386,21007.0,21006.0,0.00628063]
[1673686255989,0.41968152,21007.0,21006.0,0.00628063]
[1673686256242,0.30134886,21007.0,21006.0,0.14696988]
[1673686256510,0.30134886,21007.0,21006.0,0.00628063]
[1673686256764,0.30134886,21007.0,21006.0,0.00128063]
[1673686258005,0.30134886,21007.0,21006.0,0.14196988]
[1673686258533,0.30134886,21007.0,21006.0,0.00128063]
[1673686258770,0.30134886,21007.0,21006.0,0.14196988]
[1673686259278,0.30134886,21007.0,21006.0,0.00128063]
[1673686259514,0.75886885,21007.0,21006.0,0.00128063]
[1673686259746,0.30134886,21007.0,21006.0,0.00128063]
[1673686262274,0.63763937,21007.0,21006.0,0.00128063]
[1673686262539,0.95850437,21007.0,21005.0,0.00076753]
[1673686262775,0.546165,21006.0,21005.0,0.00076753]
[1673686263023,1.122219,21006.0,21005.0,0.00076753]
[1673686263267,1.29206779,21006.0,21005.0,0.00076753]
[1673686263513,1.52975976,21006.0,21005.0,0.00076753]
[1673686263761,1.122219,21006.0,21005.0,0.00076753]
[1673686264017,1.234319,21006.0,21005.0,0.00076753]
[1673686264522,1.542819,21006.0,21005.0,0.00076753]
[1673686264771,0.1,21005.0,21003.0,0.00334806]
[1673686265020,1.754697,21004.0,21003.0,0.00334806]
[1673686265265,2.188762,21004.0,21003.0,0.00334806]
[1673686265511,0.1,21003.0,21001.0,0.0009297]
[1673686265743,1.17809,21002.0,21001.0,0.0009297]
[1673686265990,1.386355,21002.0,21001.0,0.0009297]
[1673686266536,1.6039204,21002.0,21001.0,0.0009297]
[1673686266769,2.20282209,21002.0,21001.0,0.0009297]
[1673686267543,2.31542209,21002.0,21001.0,0.0009297]
[1673686268036,2.45142209,21002.0,21001.0,0.0009297]
[1673686268285,2.45142209,21002.0,20999.0,0.00312357]
[1673686268529,0.8478,21000.0,20997.0,0.00019]
[1673686268789,0.320865,20999.0,20997.0,0.00019]
[1673686269018,0.320865,20999.0,20996.0,0.00376435]
[1673686269019,0.1,20998.0,20996.0,0.00376435]
[1673686269273,0.320865,20997.0,20996.0,0.00376435]
[1673686269505,2.18784049,20997.0,20996.0,0.00376435]
[1673686269765,2.09728269,20997.0,20996.0,0.00376435]
[1673686270008,2.09728269,20997.0,20990.0,0.90193075]
[1673686270009,0.1,20996.0,20990.0,0.35584624]
[1673686270336,0.78175994,20995.0,20990.0,0.00417396]
[1673686270578,0.2264,20991.0,20988.0,0.00019]
[1673686270830,0.1,20989.0,20988.0,0.00019]
[1673686271070,1.010505,20989.0,20988.0,0.00019]
[1673686271315,1.48770669,20989.0,20988.0,0.00019]
[1673686271553,1.26771786,20989.0,20988.0,0.00019]
[1673686271798,0.797305,20989.0,20988.0,0.10673]
[1673686272090,0.19174567,20991.0,20988.0,0.36975528]
[1673686272330,0.136,20989.0,20988.0,0.20646757]
[1673686272579,0.136,20989.0,20986.0,0.19246692]
[1673686272842,0.31369117,20989.0,20984.0,0.35167228]
[1673686273099,0.2125,20988.0,20984.0,0.23219934]
[1673686273360,0.1132,20987.0,20984.0,0.23219934]
[1673686273611,0.1132,20987.0,20983.0,0.19688879]
[1673686273918,0.1132,20987.0,20983.0,0.20378034]
[1673686273919,0.1132,20985.0,20983.0,0.20378034]
[1673686274111,0.1132,20985.0,20983.0,0.00689155]
[1673686274885,0.29769085,20985.0,20983.0,0.00689155]
[1673686275137,0.77422385,20985.0,20983.0,0.00689155]
[1673686275394,0.90822385,20985.0,20983.0,0.00689155]
[1673686275650,0.320865,20984.0,20983.0,0.24911454]
[1673686275922,0.134,20985.0,20983.0,0.2283501]
[1673686276166,0.134,20985.0,20983.0,0.00689155]
[1673686276674,0.18503348,20989.0,20984.0,0.68834638]
[1673686276932,0.18503348,20989.0,20985.0,0.49072595]
[1673686277468,0.16502129,20988.0,20985.0,0.19072595]
[1673686277743,0.16502129,20988.0,20984.0,0.25821938]
[1673686277994,0.15915908,20987.0,20984.0,0.25815372]
[1673686278245,0.15915908,20987.0,20984.0,0.25802052]
[1673686279000,0.29415908,20987.0,20985.0,0.3]
[1673686279255,0.135,20987.0,20985.0,0.3]
[1673686279505,0.1485,20987.0,20986.0,0.24659221]
[1673686279755,0.1485,20987.0,20983.0,0.96003355]
[1673686279756,0.135,20987.0,20984.0,0.264688]
[1673686280258,0.17780071,20987.0,20984.0,0.264688]
[1673686280529,0.1821852,20986.0,20984.0,0.264688]
[1673686281043,0.58967,20988.0,20984.0,0.264688]
[1673686281286,0.31402517,20988.0,20986.0,0.25606833]
[1673686281623,0.77871,20991.0,20986.0,0.44679428]
[1673686281777,0.1524164,20989.0,20987.0,0.19072595]
[1673686282025,0.1524164,20989.0,20986.0,0.25613398]
[1673686282282,0.1524164,20989.0,20987.0,0.26009444]
[1673686282524,0.16453481,20990.0,20987.0,0.26009444]
[1673686285346,0.14863585,20993.0,20988.0,0.60382595]
[1673686285584,0.53320059,20996.0,20989.0,0.51303385]
[1673686285585,0.20925814,20994.0,20989.0,0.51303385]
[1673686285841,0.17543584,20993.0,20990.0,0.66713395]
[1673686286120,0.17543584,20993.0,20991.0,0.214244]
[1673686286121,6e-05,20992.0,20991.0,0.214244]
[1673686286630,6e-05,20992.0,20991.0,0.990638]
[1673686286873,6e-05,20992.0,20991.0,1.19578759]
[1673686287900,0.00922794,20996.0,20991.0,1.68585237]
[1673686288155,0.00922794,20996.0,20992.0,0.60382595]
[1673686288413,0.00922794,20996.0,20993.0,0.690565]
[1673686288671,0.00922794,20996.0,20993.0,0.476347]
[1673686289445,0.10222794,20996.0,20994.0,0.00013108]
[1673686289448,0.00922794,20996.0,20994.0,0.00013108]
[1673686289713,0.14422794,20996.0,20994.0,0.20557047]
[1673686289968,0.14422794,20996.0,20995.0,0.24598882]
[1673686290230,0.23722794,20996.0,20995.0,0.43671477]
[1673686290494,0.23722794,20996.0,20995.0,0.24598882]
[1673686291017,0.23722794,20996.0,20995.0,0.72229182]
[1673686291018,0.10222794,20996.0,20995.0,0.72229182]
[1673686291263,0.14422794,20996.0,20995.0,0.72229182]
[1673686291521,0.00922794,20996.0,20995.0,0.72229182]
[1673686291822,0.14422794,20996.0,20995.0,0.72329182]
[1673686292562,0.14422794,20996.0,20995.0,0.001]
[1673686292803,0.3098034,20996.0,20995.0,0.001]
[1673686293075,0.6306684,20996.0,20995.0,0.001]
[1673686294331,1.1069494,20996.0,20995.0,0.001]
[1673686294618,1.05457394,20996.0,20995.0,0.001]
[1673686294864,1.23897743,20996.0,20995.0,0.001]
[1673686295662,1.42143168,20996.0,20995.0,0.001]
[1673686295923,1.23702819,20996.0,20995.0,0.001]
[1673686296484,1.06307394,20996.0,20995.0,0.001]
[1673686296737,1.16307394,20996.0,20995.0,0.001]
[1673686297210,1.18707242,20996.0,20995.0,0.001]
[1673686297450,1.47185376,20996.0,20995.0,0.001]
[1673686297980,1.26283942,20996.0,20995.0,0.001]
[1673686298229,1.55577411,20996.0,20995.0,0.001]
[1673686298479,2.01875511,20996.0,20991.0,0.00019]
[1673686298729,0.1122,20993.0,20991.0,0.00019]
[1673686298993,0.429365,20995.0,20991.0,9.503e-05]
[1673686298994,0.444585,20992.0,20991.0,9.503e-05]
[1673686299249,0.909736,20992.0,20986.0,0.57618945]
[1673686299508,0.1123,20988.0,20987.0,0.24316108]
[1673686299748,0.1123,20988.0,20986.0,0.14068925]
[1673686300021,0.1,20990.0,20987.0,0.14068925]
[1673686300022,0.16684407,20989.0,20987.0,0.14068925]
[1673686300294,0.16684407,20989.0,20986.0,0.34811399]
[1673686300527,0.64328607,20989.0,20986.0,0.55909702]
[1673686300811,0.64328607,20989.0,20987.0,0.14068925]
[1673686301050,0.64328607,20989.0,20986.0,0.55909702]
[1673686301302,0.77828607,20989.0,20986.0,0.55909702]
[1673686301561,0.16684407,20989.0,20987.0,0.14068925]
[1673686302104,0.16684407,20989.0,20986.0,0.55909702]
[1673686302295,0.16684407,20989.0,20983.0,0.90628549]
[1673686302296,0.40102967,20988.0,20984.0,0.14068925]
[1673686302552,0.1123,20985.0,20984.0,0.14068925]
[1673686302796,0.1123,20985.0,20984.0,1.09416785]
[1673686303318,0.1123,20985.0,20983.0,0.61098431]
[1673686303570,0.1132,20984.0,20983.0,0.61098431]
[1673686303827,0.1132,20984.0,20983.0,1.56447042]
[1673686304093,0.1132,20984.0,20983.0,1.70507438]
[1673686304626,0.1132,20984.0,20983.0,1.42378117]
[1673686304842,0.2472,20984.0,20983.0,1.31257503]
[1673686305352,0.2472,20984.0,20983.0,1.17136069]
[1673686305857,0.2472,20984.0,20983.0,1.24167087]
[1673686306362,0.134,20984.0,20983.0,1.77190222]
[1673686306629,0.134,20984.0,20983.0,1.27472366]
[1673686306866,0.134,20984.0,20983.0,1.95129966]
[1673686307136,0.134,20984.0,20983.0,2.21867201]
[1673686307367,0.134,20984.0,20983.0,2.6970382]
[1673686308459,0.134,20984.0,20983.0,2.27440926]
[1673686308653,0.134,20984.0,20983.0,1.75542995]
[1673686308894,0.134,20984.0,20983.0,1.6848941]
[1673686309625,0.134,20984.0,20983.0,1.33156125]
[1673686310373,0.134,20984.0,20983.0,1.96757333]
[1673686310622,0.134,20984.0,20983.0,1.61423877]
[1673686310859,0.134,20984.0,20983.0,1.35740118]
[1673686311110,0.33290389,20984.0,20983.0,1.35740118]
[1673686311354,0.33290389,20984.0,20983.0,1.56944302]
[1673686311832,0.36754328,20984.0,20983.0,1.56944302]
[1673686312071,0.36754328,20984.0,20983.0,1.35509702]
[1673686312379,0.36754328,20984.0,20983.0,1.21376368]
[1673686312644,0.36754328,20984.0,20982.0,0.35338602]
[1673686312901,0.33290389,20984.0,20982.0,0.35338602]
[1673686313126,0.33290389,20984.0,20983.0,0.14134418]
[1673686313376,0.33290389,20984.0,20982.0,0.6206415]
[1673686313633,0.33290389,20984.0,20983.0,0.14134418]
[1673686314142,0.19890389,20984.0,20983.0,0.14134418]
[1673686314640,0.19890389,20984.0,20982.0,0.6206415]
[1673686314887,0.33290389,20984.0,20983.0,0.14134418]
[1673686315408,0.134,20984.0,20983.0,1.15059103]
[1673686315648,0.15079373,20987.0,20983.0,1.15289819]
[1673686315896,0.15099373,20987.0,20984.0,0.35317864]
[1673686316140,0.15099373,20987.0,20984.0,0.54390459]
[1673686316405,0.15099373,20987.0,20985.0,0.14127146]
[1673686316667,0.15099373,20987.0,20984.0,0.35317864]
[1673686316912,0.0002,20987.0,20985.0,0.48393711]
[1673686317185,0.0002,20987.0,20986.0,0.65558446]
[1673686317413,0.0002,20987.0,20986.0,0.96749164]
[1673686317660,0.136,20987.0,20986.0,1.34399964]
[1673686317905,0.136,20987.0,20986.0,1.5379379]
[1673686318157,0.18352338,20991.0,20986.0,1.56993969]
[1673686318409,0.18352338,20991.0,20987.0,0.29072595]
[1673686318660,0.18352338,20991.0,20988.0,0.19072595]
[1673686318908,0.18352338,20991.0,20988.0,0.49072595]
[1673686318909,0.00907274,20991.0,20988.0,0.49072595]
[1673686319181,0.00907274,20991.0,20989.0,0.40499895]
[1673686319403,0.00907274,20991.0,20990.0,0.3]
[1673686319654,0.00907274,20991.0,20990.0,0.514258]
[1673686320181,0.00907274,20991.0,20990.0,0.776417]
[1673686320437,0.14507274,20991.0,20990.0,1.01678403]
[1673686320683,0.14507274,20991.0,20990.0,1.39755926]
[1673686320996,0.14507274,20991.0,20990.0,0.93104103]
[1673686321223,0.14507274,20991.0,20990.0,0.24036703]
[1673686321481,0.42600521,20991.0,20990.0,0.001]
[1673686321740,0.74687021,20991.0,20990.0,0.001]
[1673686322538,0.85897021,20991.0,20990.0,0.001]
[1673686322802,0.37037274,20991.0,20990.0,0.001]
[1673686323061,0.14507274,20991.0,20990.0,0.43597117]
[1673686323312,0.14507274,20991.0,20990.0,1.05022817]
[1673686323587,0.14507274,20991.0,20990.0,1.50807965]
[1673686324097,0.14507274,20991.0,20990.0,1.98449665]
[1673686324354,0.00907274,20991.0,20990.0,1.98349665]
[1673686324602,0.10907274,20991.0,20990.0,1.98649665]
[1673686325382,0.10907274,20991.0,20990.0,1.96622658]
[1673686325639,0.00907274,20991.0,20990.0,1.796931]
[1673686325880,0.01707274,20991.0,20990.0,1.796931]
[1673686327743,0.01707274,20991.0,20990.0,1.909431]
[1673686328233,0.01707274,20991.0,20990.0,1.63714753]
[1673686328480,0.01707274,20991.0,20990.0,1.396931]
[1673686329735,0.01707274,20991.0,20990.0,1.696931]
[1673686330737,0.01697697,20991.0,20990.0,1.696931]
[1673686330998,0.01697697,20991.0,20990.0,2.07604782]
[1673686331242,0.01697697,20991.0,20990.0,2.66342646]
[1673686331493,0.01697697,20991.0,20990.0,2.59292534]
[1673686331743,0.01697697,20991.0,20990.0,2.9462599]
[1673686332007,0.01697697,20991.0,20990.0,3.61653705]
[1673686332513,0.01697697,20991.0,20990.0,3.686488]
[1673686332760,0.01697697,20991.0,20990.0,1.86612911]
[1673686333017,0.01697697,20991.0,20990.0,1.55158979]
[1673686333271,0.01697697,20991.0,20990.0,1.86314902]
[1673686333515,0.01697697,20991.0,20990.0,1.72209023]
[1673686333768,0.01697697,20991.0,20990.0,2.38570685]
[1673686334273,0.01697697,20991.0,20990.0,2.68570685]
[1673686334538,0.01697697,20991.0,20990.0,2.47414762]
[1673686334792,0.01697697,20991.0,20990.0,2.68569646]
[1673686335038,0.01697697,20991.0,20990.0,2.6856955]
[1673686335294,0.01697697,20991.0,20990.0,2.68569225]
[1673686335534,0.01697697,20991.0,20990.0,2.82748218]
[1673686335794,0.01697697,20991.0,20990.0,3.78043663]
[1673686336057,0.01697697,20991.0,20990.0,3.78893663]
[1673686336303,0.01697697,20991.0,20990.0,3.50688568]
[1673686336570,0.01697697,20991.0,20990.0,1.80097594]
[1673686336857,0.01697697,20991.0,20990.0,1.55068602]
[1673686338599,0.01697697,20991.0,20990.0,1.85068602]
[1673686340926,0.01697697,20991.0,20990.0,1.55068602]
[1673686341177,0.01697697,20991.0,20990.0,1.33642902]
[1673686341421,0.01697697,20991.0,20990.0,1.55068602]
[1673686341669,0.01697697,20991.0,20990.0,0.75347202]
[1673686342671,0.01697697,20991.0,20990.0,0.27705502]
[1673686343919,0.01697697,20991.0,20990.0,0.024]
[1673686344163,0.22633029,20991.0,20990.0,0.024]
[1673686345428,0.38597332,20991.0,20990.0,0.024]
[1673686345673,0.81933832,20991.0,20990.0,0.024]
[1673686345940,0.78443229,20991.0,20990.0,0.024]
[1673686346719,0.77643229,20991.0,20987.0,0.25557558]
[1673686346979,0.82312242,20991.0,20990.0,0.004]
[1673686347242,1.04337297,20991.0,20986.0,0.21827738]
[1673686347482,0.74600797,20991.0,20990.0,0.002]
[1673686347759,1.04327297,20991.0,20986.0,0.21827738]